fUST/lending_fUST_20250809
["ID","MTS","AMOUNT","RATE_DAILY","PERIOD"]
[378141797,1754745058972,-151.0,0.00023174,2]
[378141798,1754745058982,-233.148542,0.00023174,7]
[378141799,1754745058992,-233.148542,0.00023174,7]
[378141800,1754745059002,-151.0,0.00023174,7]
[378141801,1754745059011,-151.0,0.00023174,7]
[378141802,1754745059022,-151.66253,0.00023174,7]
[378141803,1754745059031,-151.66253,0.00023174,7]
[378141804,1754745059041,-9393.90266385,0.00023187,2]
[378141805,1754745059053,-160.0,0.0002319,2]
[378141806,1754745059063,-675.29,0.00023211,2]
[378141807,1754745059072,-350.0,0.00023268,2]
[378141808,1754745059082,-1006.46984032,0.00023268,2]
[378141809,1754745059092,-1500.0,0.00023268,2]
[378141810,1754745059102,-1500.0,0.00023268,2]
[378141811,1754745059112,-460.0,0.00023287,2]
[378141812,1754745059121,-460.0,0.00023287,2]
[378141813,1754745059131,-460.0,0.00023287,2]
[378141814,1754745059140,-460.0,0.00023287,2]
[378141815,1754745059150,-460.0,0.00023287,2]
[378141816,1754745059160,-151.0,0.00023287,7]
[378141817,1754745059170,-460.0,0.00023287,2]
[378141818,1754745059180,-460.0,0.00023287,2]
[378141819,1754745059190,-460.0,0.00023287,2]
[378141820,1754745059199,-460.0,0.00023287,2]
[378141821,1754745059209,-460.0,0.00023287,2]
[378141822,1754745059219,-460.0,0.00023287,2]
[378141823,1754745059228,-460.0,0.00023287,2]
[378141824,1754745059238,-460.0,0.00023287,2]
[378141825,1754745059248,-460.0,0.00023287,2]
[378141826,1754745059257,-616.05,0.00023287,2]
[378141827,1754745059266,-460.0,0.00023287,2]
[378141828,1754745059276,-460.0,0.00023287,2]
[378141829,1754745059285,-460.0,0.00023287,2]
[378141830,1754745059297,-288.856446,0.00023287,7]
[378141831,1754745059306,-460.0,0.00023287,2]
[378141832,1754745059316,-288.856446,0.00023287,7]
[378141833,1754745059325,-466.2050307,0.00023287,2]
[378141834,1754745059335,-460.0,0.00023287,2]
[378141835,1754745059344,-460.0,0.00023287,2]
[378141836,1754745059354,-464.2,0.00023287,2]
[378141837,1754745059363,-460.0,0.00023287,2]
[378141838,1754745059373,-460.0,0.00023287,2]
[378141839,1754745059382,-460.0,0.00023287,2]
[378141840,1754745059392,-367.02677627,0.00023287,2]
[378141841,1754745059401,-460.0,0.00023287,2]
[378141842,1754745059411,-460.0,0.00023287,2]
[378141843,1754745059420,-460.0,0.00023287,2]
[378141844,1754745059429,-477.3729841,0.00023287,2]
[378141845,1754745059438,-301.90443911,0.00023287,2]
[378141846,1754745059448,-460.0,0.00023287,2]
[378141847,1754745059457,-460.0,0.00023287,2]
[378141848,1754745059466,-460.0,0.00023287,2]
[378141849,1754745059475,-240.04217954,0.00023287,2]
[378141850,1754745059484,-151.0,0.00023287,7]
[378141851,1754745059494,-460.0,0.00023287,2]
[378141852,1754745059503,-460.0,0.00023287,2]
[378141853,1754745059513,-460.0,0.00023287,2]
[378141854,1754745059522,-460.0,0.00023287,2]
[378141855,1754745059532,-460.0,0.00023287,2]
[378141856,1754745059542,-151.0,0.00023287,7]
[378141857,1754745059555,-460.0,0.00023287,2]
[378141858,1754745059564,-465.40132314,0.00023287,2]
[378141859,1754745059574,-460.0,0.00023287,2]
[378141860,1754745059584,-460.0,0.00023287,2]
[378141861,1754745059594,-460.0,0.00023287,2]
[378141862,1754745059603,-477.25206601,0.00023287,2]
[378141863,1754745059613,-151.0,0.00023287,7]
[378141864,1754745059622,-460.0,0.00023287,2]
[378141865,1754745059632,-460.0,0.00023287,2]
[378141866,1754745059641,-513.74,0.00023287,2]
[378141867,1754745059651,-235.08633968,0.00023287,2]
[378141868,1754745059661,-460.0,0.00023287,2]
[378141869,1754745059670,-463.91005693,0.00023287,2]
[378141870,1754745059681,-460.0,0.00023287,2]
[378141871,1754745059690,-460.0,0.00023287,2]
[378141872,1754745059699,-460.0,0.00023287,2]
[378141873,1754745059709,-460.0,0.00023287,2]
[378141874,1754745059719,-460.0,0.00023287,2]
[378141875,1754745059728,-460.0,0.00023287,2]
[378141876,1754745059737,-460.0,0.00023287,2]
[378141877,1754745059747,-460.0,0.00023287,2]
[378141878,1754745059756,-460.0,0.00023287,2]
[378141879,1754745059766,-460.0,0.00023287,2]
[378141880,1754745059776,-460.0,0.00023287,2]
[378141881,1754745059785,-460.0,0.00023287,2]
[378141882,1754745059800,-460.0,0.00023287,2]
[378141883,1754745059810,-638.04,0.00023287,2]
[378141884,1754745059819,-460.0,0.00023287,2]
[378141885,1754745059829,-460.0,0.00023287,2]
[378141886,1754745059838,-460.0,0.00023287,2]
[378141887,1754745059847,-460.0,0.00023287,2]
[378141888,1754745059856,-466.54363822,0.00023287,2]
[378141889,1754745059867,-460.0,0.00023287,2]
[378141890,1754745059876,-460.0,0.00023287,2]
[378141891,1754745059885,-460.0,0.00023287,2]
[378141892,1754745059894,-460.0,0.00023287,2]
[378141893,1754745059903,-808.51,0.00023287,2]
[378141894,1754745059912,-477.21,0.00023287,2]
[378141895,1754745059921,-460.0,0.00023287,2]
[378141896,1754745059931,-460.0,0.00023287,2]
[378141897,1754745059940,-460.0,0.00023287,2]
[378141898,1754745059949,-1681.48,0.00023287,2]
[378141899,1754745059958,-606.73903117,0.00023287,2]
[378141900,1754745059967,-460.0,0.00023287,2]
[378141901,1754745059977,-1027.3,0.00023287,2]
[378141902,1754745059986,-460.0,0.00023287,2]
[378141903,1754745059995,-795.13,0.00023287,2]
[378141904,1754745060005,-460.0,0.00023287,2]
[378141905,1754745060014,-490.91,0.00023287,2]
[378141906,1754745060025,-638.22,0.00023287,2]
[378141907,1754745060034,-460.0,0.00023287,2]
[378141908,1754745060043,-460.0,0.00023287,2]
[378141909,1754745060054,-875.01,0.00023287,2]
[378141910,1754745060063,-460.0,0.00023287,2]
[378141911,1754745060073,-460.0,0.00023287,2]
[378141912,1754745060083,-460.0,0.00023287,2]
[378141913,1754745060093,-460.0,0.00023287,2]
[378141914,1754745060103,-460.0,0.00023287,2]
[378141915,1754745060203,-460.0,0.00023287,2]
[378141916,1754745060213,-460.0,0.00023287,2]
[378141917,1754745060223,-460.0,0.00023287,2]
[378141918,1754745060233,-728.0,0.00023287,2]
[378141919,1754745060243,-460.0,0.00023287,2]
[378141920,1754745060253,-460.0,0.00023287,2]
[378141921,1754745060264,-480.91,0.00023287,2]
[378141922,1754745060274,-1302.92,0.00023287,2]
[378141923,1754745060285,-1545.8,0.00023287,2]
[378141924,1754745060297,-460.0,0.00023287,2]
[378141925,1754745060310,-460.0,0.00023287,2]
[378141926,1754745060320,-495.1,0.00023287,2]
[378141927,1754745060331,-525.63,0.00023287,2]
[378141928,1754745060341,-526.31,0.00023287,2]
[378141929,1754745060351,-1355.34,0.00023287,2]
[378141930,1754745060361,-460.0,0.00023287,2]
[378141931,1754745060371,-923.81,0.00023287,2]
[378141932,1754745060381,-4472.04,0.00023287,2]
[378141933,1754745060390,-2093.72,0.00023287,2]
[378141934,1754745060400,-460.0,0.00023287,2]
[378141935,1754745060409,-460.0,0.00023287,2]
[378141936,1754745060418,-460.0,0.00023287,2]
[378141937,1754745060428,-462.12,0.00023287,2]
[378141938,1754745060437,-460.0,0.00023287,2]
[378141939,1754745060447,-460.0,0.00023287,2]
[378141940,1754745060457,-867.17,0.00023287,2]
[378141941,1754745060466,-460.0,0.00023287,2]
[378141942,1754745060476,-637.96,0.00023287,2]
[378141943,1754745060485,-429.75,0.00023287,2]
[378141944,1754745060495,-460.0,0.00023287,2]
[378141945,1754745060504,-476.83307238,0.00023287,2]
[378141946,1754745060514,-535.02,0.00023287,2]
[378141947,1754745060523,-224.37148239,0.00023287,2]
[378141948,1754745060532,-460.0,0.00023287,2]
[378141949,1754745060542,-460.0,0.00023287,2]
[378141950,1754745060554,-465.48733202,0.00023287,2]
[378141951,1754745060563,-460.0,0.00023287,2]
[378141952,1754745060573,-461.55179734,0.00023287,7]
[378141953,1754745060583,-744.36,0.00023287,2]
[378141954,1754745060594,-321.22642093,0.00023287,2]
[378141955,1754745060604,-1487.63,0.00023287,2]
[378141956,1754745060613,-460.0,0.00023287,2]
[378141957,1754745060623,-460.0,0.00023287,2]
[378141958,1754745060632,-460.0,0.00023287,2]
[378141959,1754745060642,-1161.91,0.00023287,2]
[378141960,1754745060652,-467.17,0.00023287,2]
[378141961,1754745060661,-460.0,0.00023287,2]
[378141962,1754745060671,-1392.39,0.00023287,2]
[378141963,1754745060680,-460.0,0.00023287,2]
[378141964,1754745060689,-460.0,0.00023287,2]
[378141965,1754745060699,-505.08,0.00023287,2]
[378141966,1754745060709,-2505.69,0.00023287,2]
[378141967,1754745060718,-460.0,0.00023287,2]
[378141968,1754745060727,-460.0,0.00023287,2]
[378141969,1754745060736,-460.0,0.00023287,2]
[378141970,1754745060746,-1216.33,0.00023287,2]
[378141971,1754745060755,-213.2644599,0.00023287,2]
[378141972,1754745060765,-460.0,0.00023287,2]
[378141973,1754745060774,-473.66842586,0.00023287,2]
[378141974,1754745060784,-460.0,0.00023287,2]
[378141975,1754745060803,-590.99528492,0.00023287,2]
[378141976,1754745060823,-905.89,0.00023287,2]
[378141977,1754745060843,-510.58651523,0.00023287,2]
[378141978,1754745060863,-151.0,0.00023409,7]
[378141979,1754745060885,-4034.48439174,0.00023409,2]
[378141980,1754745060902,-420.0,0.00023488,2]
[378141981,1754745060920,-420.0,0.00023488,2]
[378141982,1754745060935,-420.0,0.00023488,2]
[378141983,1754745060952,-151.0,0.00023561,7]
[378141984,1754745060972,-469.20784166,0.00023561,2]
[378141985,1754745060992,-509.95,0.00023561,2]
[378141986,1754745061006,-460.0,0.00023561,2]
[378141987,1754745061024,-460.0,0.00023561,2]
[378141988,1754745061040,-460.0,0.00023561,2]
[378141989,1754745061056,-460.0,0.00023561,2]
[378141990,1754745061070,-460.0,0.00023561,2]
[378141991,1754745061085,-460.0,0.00023561,2]
[378141992,1754745061100,-460.0,0.00023561,2]
[378141993,1754745061115,-460.0,0.00023561,2]
[378141994,1754745061130,-478.33011525,0.00023561,2]
[378141995,1754745061144,-151.0,0.00023561,7]
[378141996,1754745061160,-616.05,0.00023561,2]
[378141997,1754745061174,-460.0,0.00023561,2]
[378141998,1754745061188,-460.0,0.00023561,2]
[378141999,1754745061202,-412.268408,0.00023561,2]
[378142000,1754745061218,-151.0,0.00023561,7]
[378142001,1754745061234,-460.0,0.00023561,2]
[378142002,1754745061249,-169.15814127,0.00023561,2]
[378142003,1754745061265,-464.2,0.00023561,2]
[378142004,1754745061281,-460.0,0.00023561,2]
[378142005,1754745061300,-460.0,0.00023561,2]
[378142006,1754745061319,-460.0,0.00023561,2]
[378142007,1754745061334,-460.0,0.00023561,2]
[378142008,1754745061351,-460.0,0.00023561,2]
[378142009,1754745061368,-225.82892987,0.00023561,2]
[378142010,1754745061383,-466.0465682,0.00023561,2]
[378142011,1754745061398,-161.07628312,0.00023561,2]
[378142012,1754745061412,-460.0,0.00023561,2]
[378142013,1754745061428,-460.0,0.00023561,2]
[378142014,1754745061442,-460.0,0.00023561,2]
[378142015,1754745061458,-460.0,0.00023561,2]
[378142016,1754745061473,-460.0,0.00023561,2]
[378142017,1754745061488,-460.0,0.00023561,2]
[378142018,1754745061502,-460.0,0.00023561,2]
[378142019,1754745061517,-513.74,0.00023561,2]
[378142020,1754745061532,-460.0,0.00023561,2]
[378142021,1754745061542,-460.0,0.00023561,2]
[378142022,1754745061555,-435.95517016,0.00023561,2]
[378142023,1754745061565,-460.0,0.00023561,2]
[378142024,1754745061575,-460.0,0.00023561,2]
[378142025,1754745061584,-460.0,0.00023561,2]
[378142026,1754745061594,-460.0,0.00023561,2]
[378142027,1754745061604,-460.0,0.00023561,2]
[378142028,1754745061614,-399.37608164,0.00023561,2]
[378142029,1754745061623,-460.0,0.00023561,2]
[378142030,1754745061632,-460.0,0.00023561,2]
[378142031,1754745061642,-460.0,0.00023561,2]
[378142032,1754745061652,-638.04,0.00023561,2]
[378142033,1754745061662,-460.0,0.00023561,2]
[378142034,1754745061671,-460.0,0.00023561,2]
[378142035,1754745061681,-460.0,0.00023561,2]
[378142036,1754745061691,-460.0,0.00023561,2]
[378142037,1754745061700,-460.0,0.00023561,2]
[378142038,1754745061923,-460.0,0.00023561,2]
[378142039,1754745061938,-460.0,0.00023561,2]
[378142040,1754745061948,-808.51,0.00023561,2]
[378142041,1754745061958,-477.21,0.00023561,2]
[378142042,1754745061968,-270.171787,0.00023561,7]
[378142043,1754745061977,-460.0,0.00023561,2]
[378142044,1754745061986,-460.0,0.00023561,2]
[378142045,1754745061996,-1681.48,0.00023561,2]
[378142046,1754745062005,-460.0,0.00023561,2]
[378142047,1754745062014,-1027.3,0.00023561,2]
[378142048,1754745062024,-460.0,0.00023561,2]
[378142049,1754745062033,-795.13,0.00023561,2]
[378142050,1754745062043,-460.0,0.00023561,2]
[378142051,1754745062054,-490.91,0.00023561,2]
[378142052,1754745062064,-638.22,0.00023561,2]
[378142053,1754745062074,-460.0,0.00023561,2]
[378142054,1754745062083,-460.0,0.00023561,2]
[378142055,1754745062094,-875.01,0.00023561,2]
[378142056,1754745062103,-460.0,0.00023561,2]
[378142057,1754745062113,-460.0,0.00023561,2]
[378142058,1754745062123,-467.69078397,0.00023561,2]
[378142059,1754745062132,-460.0,0.00023561,2]
[378142060,1754745062142,-269.59648402,0.00023561,2]
[378142061,1754745062152,-460.0,0.00023561,2]
[378142062,1754745062162,-450.66124471,0.00023561,2]
[378142063,1754745062172,-728.0,0.00023561,2]
[378142064,1754745062182,-578.12163147,0.00023561,2]
[378142065,1754745062192,-460.0,0.00023561,2]
[378142066,1754745062202,-480.91,0.00023561,2]
[378142067,1754745062212,-1302.92,0.00023561,2]
[378142068,1754745062221,-1545.8,0.00023561,2]
[378142069,1754745062231,-461.53,0.00023561,2]
[378142070,1754745062241,-495.1,0.00023561,2]
[378142071,1754745062250,-525.63,0.00023561,2]
[378142072,1754745062258,-526.31,0.00023561,2]
[378142073,1754745062266,-1355.34,0.00023561,2]
[378142074,1754745062276,-460.0,0.00023561,2]
[378142075,1754745062286,-923.81,0.00023561,2]
[378142076,1754745062295,-4472.04,0.00023561,2]
[378142077,1754745062310,-2093.72,0.00023561,2]
[378142078,1754745062320,-460.0,0.00023561,2]
[378142079,1754745062329,-460.0,0.00023561,2]
[378142080,1754745062339,-462.12,0.00023561,2]
[378142081,1754745062354,-360.69061479,0.00023561,2]
[378142082,1754745062364,-867.17,0.00023561,2]
[378142083,1754745062374,-460.0,0.00023561,2]
[378142084,1754745062384,-637.96,0.00023561,2]
[378142085,1754745062394,-460.0,0.00023561,2]
[378142086,1754745062403,-535.02,0.00023561,2]
[378142087,1754745062413,-460.0,0.00023561,2]
[378142088,1754745062423,-460.0,0.00023561,2]
[378142089,1754745062433,-460.0,0.00023561,2]
[378142090,1754745062443,-744.36,0.00023561,2]
[378142091,1754745062452,-1487.63,0.00023561,2]
[378142092,1754745062462,-460.0,0.00023561,2]
[378142093,1754745062472,-460.0,0.00023561,2]
[378142094,1754745062482,-460.0,0.00023561,2]
[378142095,1754745062492,-1161.91,0.00023561,2]
[378142096,1754745062501,-467.17,0.00023561,2]
[378142097,1754745062511,-460.0,0.00023561,2]
[378142098,1754745062520,-1392.39,0.00023561,2]
[378142099,1754745062530,-460.0,0.00023561,2]
[378142100,1754745062540,-460.0,0.00023561,2]
[378142101,1754745062551,-505.08,0.00023561,2]
[378142102,1754745062562,-2505.69,0.00023561,2]
[378142103,1754745062572,-460.0,0.00023561,2]
[378142104,1754745062581,-1216.33,0.00023561,2]
[378142105,1754745062591,-460.0,0.00023561,2]
[378142106,1754745062601,-460.0,0.00023561,2]
[378142107,1754745062610,-905.89,0.00023561,2]
[378142108,1754745062621,-1680.0,0.00023598,2]
[378142109,1754745062630,-260.0,0.00023738,2]
[378142110,1754745062639,-150.157,0.00023748,2]
[378142111,1754745062649,-150.0,0.00023748,2]
[378142112,1754745062658,-971.0,0.00023748,2]
[378142113,1754745062669,-636.0,0.00023748,2]
[378142114,1754745062678,-2150.0,0.00023748,2]
[378142115,1754745062687,-221.753,0.00023812,5]
[378142116,1754745062699,-450.0,0.00023816,2]
[378142117,1754745062710,-2000.0,0.00023816,2]
[378142118,1754745062719,-2000.0,0.00023816,2]
[378142119,1754745062729,-460.0,0.00023835,2]
[378142120,1754745062739,-460.0,0.00023835,2]
[378142121,1754745062749,-460.0,0.00023835,2]
[378142122,1754745062758,-566.41766155,0.00023835,2]
[378142123,1754745062768,-476.49252751,0.00023835,2]
[378142124,1754745062778,-460.0,0.00023835,2]
[378142125,1754745062788,-460.0,0.00023835,2]
[378142126,1754745062805,-616.05,0.00023835,2]
[378142127,1754745062815,-581.40576508,0.00023835,2]
[378142128,1754745062825,-460.0,0.00023835,2]
[378142129,1754745062835,-464.2,0.00023835,2]
[378142130,1754745062844,-571.13,0.00023835,2]
[378142131,1754745062854,-276.56,0.00023835,2]
[378142132,1754745062864,-460.0,0.00023835,2]
[378142133,1754745062874,-460.0,0.00023835,2]
[378142134,1754745062885,-460.0,0.00023835,2]
[378142135,1754745062894,-460.0,0.00023835,2]
[378142136,1754745062904,-460.0,0.00023835,2]
[378142137,1754745062914,-460.0,0.00023835,2]
[378142138,1754745062923,-460.0,0.00023835,2]
[378142139,1754745062932,-513.74,0.00023835,2]
[378142140,1754745062942,-460.0,0.00023835,2]
[378142141,1754745062952,-460.0,0.00023835,2]
[378142142,1754745062962,-460.0,0.00023835,2]
[378142143,1754745062971,-460.0,0.00023835,2]
[378142144,1754745062981,-233.148542,0.00023835,7]
[378142145,1754745062991,-233.148542,0.00023835,7]
[378142146,1754745063001,-460.0,0.00023835,2]
[378142147,1754745063011,-460.0,0.00023835,2]
[378142148,1754745063022,-496.69664594,0.00023835,2]
[378142149,1754745063032,-638.04,0.00023835,2]
[378142150,1754745063042,-460.0,0.00023835,2]
[378142151,1754745063054,-460.0,0.00023835,2]
[378142152,1754745063065,-353.12023048,0.00023835,2]
[378142153,1754745063076,-460.0,0.00023835,2]
[378142154,1754745063087,-151.0,0.00023835,7]
[378142155,1754745063096,-460.0,0.00023835,2]
[378142156,1754745063106,-460.0,0.00023835,2]
[378142157,1754745063116,-498.33,0.00023835,2]
[378142158,1754745063130,-808.51,0.00023835,2]
[378142159,1754745063147,-151.0,0.00023835,7]
[378142160,1754745063157,-477.21,0.00023835,2]
[378142161,1754745063167,-151.0,0.00023835,7]
[378142162,1754745063178,-151.0,0.00023835,7]
[378142163,1754745063189,-460.0,0.00023835,2]
[378142164,1754745063202,-1681.48,0.00023835,2]
[378142165,1754745063221,-460.0,0.00023835,2]
[378142166,1754745063241,-1027.3,0.00023835,2]
[378142167,1754745063252,-460.0,0.00023835,2]
[378142168,1754745063262,-795.13,0.00023835,2]
[378142169,1754745063272,-490.91,0.00023835,2]
[378142170,1754745063282,-638.22,0.00023835,2]
[378142171,1754745063292,-460.0,0.00023835,2]
[378142172,1754745063303,-460.0,0.00023835,2]
[378142173,1754745063313,-875.01,0.00023835,2]
[378142174,1754745063323,-460.0,0.00023835,2]
[378142175,1754745063333,-460.0,0.00023835,2]
[378142176,1754745063342,-460.0,0.00023835,2]
[378142177,1754745063352,-728.0,0.00023835,2]
[378142178,1754745063362,-460.0,0.00023835,2]
[378142179,1754745063371,-480.91,0.00023835,2]
[378142180,1754745063381,-1302.92,0.00023835,2]
[378142181,1754745063390,-1545.8,0.00023835,2]
[378142182,1754745063400,-265.11973,0.00023835,7]
[378142183,1754745063409,-495.1,0.00023835,2]
[378142184,1754745063419,-265.11973,0.00023835,7]
[378142185,1754745063429,-525.63,0.00023835,2]
[378142186,1754745063438,-526.31,0.00023835,2]
[378142187,1754745063448,-1355.34,0.00023835,2]
[378142188,1754745063458,-460.0,0.00023835,2]
[378142189,1754745063467,-923.81,0.00023835,2]
[378142190,1754745063477,-4472.04,0.00023835,2]
[378142191,1754745063487,-2093.72,0.00023835,2]
[378142192,1754745063496,-161.776111,0.00023835,7]
[378142193,1754745063506,-460.0,0.00023835,2]
[378142194,1754745063515,-161.776111,0.00023835,7]
[378142195,1754745063525,-460.0,0.00023835,2]
[378142196,1754745063535,-462.12,0.00023835,2]
[378142197,1754745063544,-867.17,0.00023835,2]
[378142198,1754745063556,-460.0,0.00023835,2]
[378142199,1754745063566,-637.96,0.00023835,2]
[378142200,1754745063576,-460.0,0.00023835,2]
[378142201,1754745063586,-535.02,0.00023835,2]
[378142202,1754745063596,-460.0,0.00023835,2]
[378142203,1754745063606,-460.0,0.00023835,2]
[378142204,1754745063616,-460.0,0.00023835,2]
[378142205,1754745063626,-744.36,0.00023835,2]
[378142206,1754745063636,-1487.63,0.00023835,2]
[378142207,1754745063645,-460.0,0.00023835,2]
[378142208,1754745063654,-460.0,0.00023835,2]
[378142209,1754745063664,-1161.91,0.00023835,2]
[378142210,1754745063673,-151.66253,0.00023835,7]
[378142211,1754745063683,-467.17,0.00023835,2]
[378142212,1754745063693,-460.0,0.00023835,2]
[378142213,1754745063703,-1392.39,0.00023835,2]
[378142214,1754745063713,-151.66253,0.00023835,7]
[378142215,1754745063723,-460.0,0.00023835,2]
[378142216,1754745063732,-157.4,0.00023835,2]
[378142217,1754745063743,-505.08,0.00023835,2]
[378142218,1754745063752,-2505.69,0.00023835,2]
[378142219,1754745063762,-460.0,0.00023835,2]
[378142220,1754745063772,-1216.33,0.00023835,2]
[378142221,1754745063782,-460.0,0.00023835,2]
[378142222,1754745063794,-460.0,0.00023835,2]
[378142223,1754745063806,-905.89,0.00023835,2]
[378142224,1754745063817,-188.0,0.00023863,11]
[378142225,1754745063827,-150.0,0.00023952,2]
[378142226,1754745063839,-231.92402426,0.00024,7]
[378142227,1754745063849,-527.77735381,0.00024,7]
[378142228,1754745063859,-160.0,0.00024,7]
[378142229,1754745063870,-842.95011917,0.00024,7]
[378142230,1754745063881,-460.0,0.00024109,2]
[378142231,1754745063890,-460.0,0.00024109,2]
[378142232,1754745063900,-460.0,0.00024109,2]
[378142233,1754745063911,-460.0,0.00024109,2]
[378142234,1754745063920,-460.0,0.00024109,2]
[378142235,1754745063930,-616.05,0.00024109,2]
[378142236,1754745063940,-460.0,0.00024109,2]
[378142237,1754745063950,-464.2,0.00024109,2]
[378142238,1754745063960,-460.0,0.00024109,2]
[378142239,1754745063970,-460.0,0.00024109,2]
[378142240,1754745063980,-460.0,0.00024109,2]
[378142241,1754745063990,-460.0,0.00024109,2]
[378142242,1754745064000,-460.0,0.00024109,2]
[378142243,1754745064012,-301.999999,0.00024109,7]
[378142244,1754745064022,-460.0,0.00024109,2]
[378142245,1754745064033,-513.74,0.00024109,2]
[378142246,1754745064045,-460.0,0.00024109,2]
[378142247,1754745064057,-460.0,0.00024109,2]
[378142248,1754745064067,-460.0,0.00024109,2]
[378142249,1754745064076,-460.0,0.00024109,2]
[378142250,1754745064087,-460.0,0.00024109,2]
[378142251,1754745064097,-460.0,0.00024109,2]
[378142252,1754745064107,-638.04,0.00024109,2]
[378142253,1754745064118,-460.0,0.00024109,2]
[378142254,1754745064129,-460.0,0.00024109,2]
[378142255,1754745064139,-460.0,0.00024109,2]
[378142256,1754745064149,-808.51,0.00024109,2]
[378142257,1754745064159,-477.21,0.00024109,2]
[378142258,1754745064169,-460.0,0.00024109,2]
[378142259,1754745064179,-1681.48,0.00024109,2]
[378142260,1754745064190,-383.98,0.00024109,2]
[378142261,1754745064202,-1027.3,0.00024109,2]
[378142262,1754745064214,-443.34552237,0.00024109,2]
[378142263,1754745064224,-795.13,0.00024109,2]
[378142264,1754745064236,-490.91,0.00024109,2]
[378142265,1754745064247,-638.22,0.00024109,2]
[378142266,1754745064257,-460.0,0.00024109,2]
[378142267,1754745064268,-875.01,0.00024109,2]
[378142268,1754745064279,-333.04850002,0.00024109,2]
[378142269,1754745064289,-12666.14847857,0.00024109,7]
[378142270,1754745064300,-460.0,0.00024109,2]
[378142271,1754745064316,-460.0,0.00024109,2]
[378142272,1754745064326,-728.0,0.00024109,2]
[378142273,1754745064336,-458.91,0.00024109,2]
[378142274,1754745064344,-480.91,0.00024109,2]
[378142275,1754745064352,-1302.92,0.00024109,2]
[378142276,1754745064362,-216.61183532,0.00024109,7]
[378142277,1754745064373,-1545.8,0.00024109,2]
[378142278,1754745064384,-495.1,0.00024109,2]
[378142279,1754745064394,-525.63,0.00024109,2]
[378142280,1754745064403,-526.31,0.00024109,2]
[378142281,1754745064414,-1355.34,0.00024109,2]
[378142282,1754745064423,-460.0,0.00024109,2]
[378142283,1754745064433,-923.81,0.00024109,2]
[378142284,1754745064443,-4472.04,0.00024109,2]
[378142285,1754745064453,-2093.72,0.00024109,2]
[378142286,1754745064462,-312.16666667,0.00024109,7]
[378142287,1754745064472,-460.0,0.00024109,2]
[378142288,1754745064481,-460.0,0.00024109,2]
[378142289,1754745064491,-462.12,0.00024109,2]
[378142290,1754745064501,-867.17,0.00024109,2]
[378142291,1754745064510,-637.96,0.00024109,2]
[378142292,1754745064519,-460.0,0.00024109,2]
[378142293,1754745064529,-535.02,0.00024109,2]
[378142294,1754745064539,-512.72277336,0.00024109,2]
[378142295,1754745064548,-460.0,0.00024109,2]
[378142296,1754745064562,-460.0,0.00024109,2]